fUSD/lending_fUSD_20240820
["ID","MTS","AMOUNT","RATE_DAILY","PERIOD"]
[335356264,1724157040577,-18918.55938786,0.00011,2]
[335356266,1724157040588,-337.374,0.00011,2]
[335356277,1724157040689,-342.108,0.00011,2]
[335356279,1724157040701,-3377.89185886,0.00011,2]
[335356282,1724157040713,-298.31412405,0.00011,2]
[335356284,1724157040724,-1174.94716132,0.00011,2]
[335356287,1724157040748,-1447.08866371,0.00011,2]
[335356289,1724157040759,-1487.92434299,0.00011,2]
[335356292,1724157040771,-387.72733961,0.00011,2]
[335356294,1724157040782,-4905.37844259,0.00011,2]
[335356536,1724157043306,-802.06340159,0.00011,2]
[335356543,1724157043363,-3918.7910805,0.00011,2]
[335356550,1724157043420,-2712.85860696,0.00011,2]
[335356552,1724157043431,-1963.95623651,0.00011,2]
[335356554,1724157043442,-96020.21706328,0.00011,2]
[335356570,1724157043585,-320.26401847,0.00011,2]
[335356572,1724157043596,-5984.08326558,0.00011,2]
[335356616,1724157043983,-357.36375668,0.00011,2]
[335356618,1724157043994,-562.19829195,0.00011,2]
[335356831,1724157046259,-725.56607125,0.00010838,2]
[335356833,1724157046269,-124.43392875,0.00011,2]
[335356838,1724157046316,-5024.88033492,0.00011,2]
[335356850,1724157046430,-346.76974357,0.00011,2]
[335356852,1724157046442,-432.77116256,0.00011,2]
[335356854,1724157046454,-4553.8190213,0.00011,2]
[335356856,1724157046466,-11481.76986043,0.00011,2]
[335356860,1724157046486,-768.85,0.00011,2]
[335357592,1724157069514,371.86,9.148e-05,2]
[335357593,1724157097130,500.0,9.361e-05,2]
[335357595,1724157189889,500.0,9.361e-05,2]
[335357604,1724157676812,369.24,8.219e-05,2]
[335357605,1724157901966,173.51,9.879e-05,2]
[335357606,1724157925970,570.48,9.849e-05,2]
[335357607,1724158006149,188.8545039,9.888e-05,2]
[335357608,1724158101548,1220.14,9.725e-05,2]
[335357614,1724158147529,477.15433899,9.899e-05,2]
[335357617,1724158168752,250.0,9.855e-05,2]
[335357620,1724158174171,365.96,8.219e-05,2]
[335357623,1724158199126,1852.42,9.81e-05,2]
[335357626,1724158223613,805.16,9.878e-05,2]
[335357631,1724158231347,-227.149,9.923e-05,2]
[335357632,1724158231357,-1000.0,9.926e-05,2]
[335357633,1724158231367,-10.86176952,9.978e-05,2]
[335357634,1724158231403,-294.05823048,9.978e-05,2]
[335357635,1724158231413,-150.0,0.00010082,2]
[335357636,1724158231423,-300.0,0.00010131,2]
[335357637,1724158231432,-300.0,0.00010131,2]
[335357638,1724158231442,-246.47,0.00010132,2]
[335357639,1724158231452,-499.99,0.00010132,2]
[335357640,1724158231461,-856.8,0.00010132,2]
[335357641,1724158231472,-273.14,0.00010132,2]
[335357642,1724158231481,-171.07,0.00010155,2]
[335357643,1724158231490,-300.0,0.000104,3]
[335357644,1724158231499,-365.96,0.00010468,2]
[335357645,1724158231510,-9275.57361174,0.00010471,2]
[335357646,1724158231520,-700.0,0.000105,3]
[335357647,1724158231529,-4797.52635124,0.00010505,2]
[335357648,1724158231538,-1100.0,0.000106,3]
[335357649,1724158231548,-1500.0,0.000107,3]
[335357650,1724158231557,-1900.0,0.000108,3]
[335357651,1724158231568,-1178.4679201,0.00010852,2]
[335357652,1724158231577,-155.0,0.00010862,2]
[335357653,1724158231586,-343.79918605,0.00010862,2]
[335357654,1724158231596,-330.4044326,0.00010862,2]
[335357655,1724158231605,-2285.67614838,0.00010889,2]
[335357656,1724158231615,-150.0,0.00010889,2]
[335357657,1724158231624,-9840.0201,0.00010899,2]
[335357658,1724158231634,-1263.1384,0.00010899,2]
[335357660,1724158231643,-1455.41,0.00010899,2]
[335357662,1724158231653,-2251.4869,0.00010899,2]
[335357664,1724158231662,-2025.8084,0.000109,2]
[335357666,1724158231671,-2047.5944,0.000109,2]
[335357667,1724158231681,-395.7761,0.000109,2]
[335357669,1724158231690,-163.77229376,0.000109,2]
[335357671,1724158231700,-192.42590303,0.000109,2]
[335357673,1724158231709,-152.67384191,0.000109,2]
[335357674,1724158231718,-300.0,0.000109,3]
[335357675,1724158231727,-150.76302071,0.000109,2]
[335357676,1724158231736,-179.65493735,0.000109,2]
[335357677,1724158231746,-298.77636906,0.00010949,2]
[335357678,1724158231755,-298.77636906,0.00010949,2]
[335357679,1724158231764,-151.94,0.00010959,2]
[335357680,1724158231774,-257.37,0.00010959,2]
[335357681,1724158231783,-333.31,0.00010959,2]
[335357682,1724158231792,-250.0,0.00010959,2]
[335357683,1724158231802,-160.05579524,0.00010997,2]
[335357684,1724158231812,-1018.61,0.00010998,2]
[335357685,1724158231824,-500.0,0.00010998,2]
[335357686,1724158231833,-500.0,0.00010998,2]
[335357687,1724158231843,-505.19585159,0.00010998,2]
[335357688,1724158231853,-500.0,0.00010998,2]
[335357689,1724158231863,-500.0,0.00010998,2]
[335357690,1724158231872,-500.0,0.00010998,2]
[335357691,1724158231882,-500.0,0.00010998,2]
[335357692,1724158231892,-500.0,0.00010998,2]
[335357693,1724158231902,-500.0,0.00010998,2]
[335357694,1724158231912,-1229.79,0.00010998,2]
[335357695,1724158231922,-500.0,0.00010998,2]
[335357696,1724158231931,-500.0,0.00010998,2]
[335357697,1724158231942,-1194.95,0.00010998,2]
[335357698,1724158231952,-5307.57,0.00010998,2]
[335357699,1724158231961,-1000.0,0.00010999,2]
[335357700,1724158231971,-1000.0,0.00010999,2]
[335357701,1724158231980,-1000.0,0.00010999,2]
[335357702,1724158231993,-151.0,0.00010999,2]
[335357703,1724158232002,-1000.0,0.00010999,2]
[335357704,1724158232011,-1000.0,0.00010999,2]
[335357705,1724158232021,-151.0,0.00010999,2]
[335357706,1724158232030,-151.0,0.00010999,2]
[335357707,1724158232041,-176.885517,0.00010999,2]
[335357708,1724158232050,-151.0,0.00010999,2]
[335357709,1724158232061,-151.0,0.00010999,2]
[335357710,1724158232072,-857.41940641,0.00010999,2]
[335357711,1724158232089,-201.08348059,0.00010999,2]
[335357712,1724158232103,-151.644668,0.00010999,2]
[335357713,1724158232112,-151.0,0.00010999,2]
[335357714,1724158232123,-502.42312096,0.00010999,2]
[335357715,1724158232132,-151.0,0.00010999,2]
[335357716,1724158232141,-164.356047,0.00010999,2]
[335357717,1724158232151,-164.356047,0.00010999,2]
[335357718,1724158232160,-151.0,0.00010999,2]
[335357719,1724158232170,-151.0,0.00010999,2]
[335357720,1724158232182,-151.0,0.00010999,2]
[335357721,1724158232196,-151.0,0.00010999,2]
[335357722,1724158232205,-151.0,0.00010999,2]
[335357723,1724158232215,-155.380855,0.00010999,2]
[335357724,1724158232224,-161.18252,0.00010999,2]
[335357725,1724158232234,-71.63826254,0.00010999,2]
[335357726,1724158232249,-89.54425746,0.00010999,2]
[335357727,1724158232259,-151.0,0.00010999,2]
[335357728,1724158232268,-151.0,0.00010999,2]
[335357729,1724158232279,-151.0,0.00010999,2]
[335357730,1724158232289,-151.0,0.00010999,2]
[335357731,1724158232298,-262.750192,0.00010999,2]
[335357732,1724158232307,-262.750192,0.00010999,2]
[335357733,1724158232318,-151.0,0.00010999,2]
[335357734,1724158232327,-151.0,0.00010999,2]
[335357735,1724158232338,-151.840431,0.00010999,2]
[335357736,1724158232347,-151.355681,0.00010999,2]
[335357737,1724158232358,-151.0,0.00010999,2]
[335357738,1724158232367,-151.0,0.00010999,2]
[335357739,1724158232377,-151.0,0.00010999,2]
[335357740,1724158232386,-151.0,0.00010999,2]
[335357741,1724158232395,-151.0,0.00010999,2]
[335357742,1724158232405,-151.0,0.00010999,2]
[335357743,1724158232415,-151.0,0.00010999,2]
[335357744,1724158232424,-151.0,0.00010999,2]
[335357745,1724158232435,-152.459408,0.00010999,2]
[335357746,1724158232445,-613.64755604,0.00010999,2]
[335357747,1724158232458,-37.36027296,0.00010999,2]
[335357748,1724158232467,-651.007829,0.00010999,2]
[335357749,1724158232476,-1018.61,0.00010999,2]
[335357750,1724158232486,-174.43002285,0.00010999,2]
[335357751,1724158232497,-844.17997715,0.00010999,2]
[335357752,1724158232506,-151.0,0.00010999,2]
[335357753,1724158232516,-1018.61,0.00010999,2]
[335357754,1724158232525,-1018.61,0.00010999,2]
[335357755,1724158232534,-1018.61,0.00010999,2]
[335357756,1724158232543,-1018.61,0.00010999,2]
[335357757,1724158232553,-1018.61,0.00010999,2]
[335357758,1724158232562,-80.6089512,0.00010999,2]
[335357759,1724158232577,-938.0010488,0.00010999,2]
[335357760,1724158232587,-1018.61,0.00010999,2]
[335357761,1724158232596,-651.007829,0.00010999,2]
[335357762,1724158232606,-1018.61,0.00010999,2]
[335357763,1724158232615,-651.007829,0.00010999,2]
[335357764,1724158232625,-1018.61,0.00010999,2]
[335357765,1724158232634,-1018.61,0.00010999,2]
[335357766,1724158232644,-500.0,0.00010999,2]
[335357767,1724158232653,-1018.61,0.00010999,2]
[335357768,1724158232663,-500.0,0.00010999,2]
[335357769,1724158232672,-50.65703935,0.00010999,2]
[335357770,1724158232684,-563.10986677,0.00010999,2]
[335357771,1724158232713,-404.84309388,0.00010999,2]
[335357772,1724158232723,-81.77517213,0.00010999,2]
[335357773,1724158232734,-418.22482787,0.00010999,2]
[335357774,1724158232744,-1018.61,0.00010999,2]
[335357775,1724158232753,-500.0,0.00010999,2]
[335357776,1724158232763,-1018.61,0.00010999,2]
[335357777,1724158232772,-500.0,0.00010999,2]
[335357778,1724158232782,-1018.61,0.00010999,2]
[335357779,1724158232791,-349.26399152,0.00010999,2]
[335357781,1724158237526,-155.0,0.00010861,2]
[335357782,1724158237535,-165.19422617,0.000109,2]
[335357783,1724158237545,-150.73600848,0.00010999,2]
[335357784,1724158237554,-245.91385394,0.00010999,2]
[335357785,1724158237564,-772.69614606,0.00010999,2]
[335357786,1724158237573,-628.69580138,0.00010999,2]
[335357787,1724158237582,-1018.61,0.00010999,2]
[335357788,1724158237591,-1018.61,0.00010999,2]
[335357789,1724158237600,-2.23614778,0.00010999,2]
[335357790,1724158237687,-1016.37385222,0.00010999,2]
[335357791,1724158237697,-1018.61,0.00010999,2]
[335357792,1724158237706,-1018.67548168,0.00010999,2]
[335357793,1724158237716,-151.0,0.00010999,2]
[335357794,1724158237725,-151.0,0.00010999,2]
[335357795,1724158237735,-151.0,0.00010999,2]
[335357796,1724158237744,-151.0,0.00010999,2]
[335357797,1724158237753,-151.0,0.00010999,2]
[335357798,1724158237762,-151.0,0.00010999,2]
[335357799,1724158237771,-151.0,0.00010999,2]
[335357800,1724158237780,-151.0,0.00010999,2]
[335357801,1724158237788,-151.0,0.00010999,2]
[335357803,1724158237798,-151.0,0.00010999,2]
[335357805,1724158237807,-151.0,0.00010999,2]
[335357807,1724158237817,-151.0,0.00010999,2]
[335357809,1724158237826,-151.0,0.00010999,2]
[335357811,1724158237835,-151.0,0.00010999,2]
[335357813,1724158237844,-151.0,0.00010999,2]
[335357815,1724158237854,-164.982696,0.00010999,2]
[335357817,1724158237863,-151.0,0.00010999,2]
[335357819,1724158237872,-27.01645204,0.00010999,2]
[335357983,1724158239509,-123.98354796,0.00010999,2]
[335357985,1724158239519,-151.0,0.00010999,2]
[335357987,1724158239528,-151.0,0.00010999,2]
[335357989,1724158239538,-151.0,0.00010999,2]
[335357991,1724158239548,-151.0,0.00010999,2]
[335357993,1724158239558,-151.0,0.00010999,2]
[335357995,1724158239567,-151.862069,0.00010999,2]
[335357997,1724158239577,-456.69963619,0.00010999,2]
[335357999,1724158239586,-151.0,0.00010999,2]
[335358001,1724158239596,-151.0,0.00010999,2]
[335358003,1724158239605,-403.69563,0.00010999,2]
[335358005,1724158239615,-403.69563,0.00010999,2]
[335358006,1724158239624,-403.69563,0.00010999,2]
[335358008,1724158239633,-403.69563,0.00010999,2]
[335358010,1724158239643,-403.69563,0.00010999,2]
[335358012,1724158239652,-403.69563,0.00010999,2]
[335358014,1724158239662,-151.0,0.00010999,2]
[335358016,1724158239671,-151.0,0.00010999,2]
[335358018,1724158239681,-152.053308,0.00010999,2]
[335358020,1724158239691,-151.0,0.00010999,2]
[335358022,1724158239701,-151.0,0.00010999,2]
[335358024,1724158239711,-151.0,0.00010999,2]
[335358026,1724158239720,-151.0,0.00010999,2]
[335358028,1724158239730,-151.0,0.00010999,2]
[335358030,1724158239740,-192.2724948,0.00010999,2]
[335358032,1724158239749,-151.0,0.00010999,2]
[335358034,1724158239758,-151.0,0.00010999,2]
[335358036,1724158239768,-151.0,0.00010999,2]
[335358038,1724158239777,-151.0,0.00010999,2]
[335358040,1724158239786,-151.768265,0.00010999,2]
[335358042,1724158239795,-151.0,0.00010999,2]
[335358043,1724158239804,-151.0,0.00010999,2]
[335358044,1724158239814,-151.0,0.00010999,2]
[335358046,1724158239824,-151.0,0.00010999,2]
[335358048,1724158239834,-154.478222,0.00010999,2]
[335358050,1724158239844,-151.0,0.00010999,2]
[335358052,1724158239854,-151.0,0.00010999,2]
[335358054,1724158239863,-151.0,0.00010999,2]
[335358056,1724158239873,-151.0,0.00010999,2]
[335358058,1724158239883,-1027.662524,0.00010999,2]
[335358060,1724158239892,-1027.662524,0.00010999,2]
[335358062,1724158239902,-592.4842959,0.00010999,2]
[335358066,1724158239931,-435.1782281,0.00010999,2]
[335358068,1724158239940,-150.8409906,0.00010999,2]
[335358069,1724158239951,-0.1590094,0.00010999,2]
[335358070,1724158239961,-151.0,0.00010999,2]
[335358071,1724158239970,-151.0,0.00010999,2]
[335358072,1724158239979,-1027.662524,0.00010999,2]
[335358073,1724158239989,-586.8133479,0.00010999,2]
[335358074,1724158240001,-440.8491761,0.00010999,2]
[335358075,1724158240010,-1027.662524,0.00010999,2]
[335358076,1724158240019,-151.0,0.00010999,2]
[335358077,1724158240029,-151.0,0.00010999,2]
[335358078,1724158240039,-151.0,0.00010999,2]
[335358079,1724158240048,-151.586059,0.00010999,2]
[335358080,1724158240057,-151.0,0.00010999,2]
[335358081,1724158240067,-430.0022409,0.00010999,2]
[335358083,1724158240078,-158.3539971,0.00010999,2]
[335358085,1724158240088,-588.356238,0.00010999,2]
[335358087,1724158240097,-588.356238,0.00010999,2]
[335358089,1724158240106,-588.356238,0.00010999,2]
[335358091,1724158240118,-588.356238,0.00010999,2]
[335358093,1724158240127,-439.9408424,0.00010999,2]
[335358283,1724158242465,-148.4153956,0.00010999,2]
[335358293,1724158242655,-151.679642,0.00010999,2]
[335358295,1724158242685,-500.0,0.00010999,2]
[335358297,1724158242707,-500.0,0.00010999,2]
[335358299,1724158242729,-500.0,0.00010999,2]
[335358301,1724158242750,-499.87476822,0.00010999,2]
[335358303,1724158242771,-230.691258,0.00010999,2]
[335358305,1724158242792,-230.691258,0.00010999,2]
[335358307,1724158242815,-230.691258,0.00010999,2]
[335358309,1724158242836,-283.365778,0.00010999,2]
[335358311,1724158242858,-283.365778,0.00010999,2]
[335358313,1724158242879,-283.365778,0.00010999,2]
[335358315,1724158242901,-230.691258,0.00010999,2]
[335358317,1724158242916,-230.691258,0.00010999,2]
[335358319,1724158242925,-230.691258,0.00010999,2]
[335358321,1724158242934,-283.365778,0.00010999,2]
[335358323,1724158242943,-283.365778,0.00010999,2]
[335358325,1724158242952,-283.365778,0.00010999,2]
[335358327,1724158242961,-500.0,0.00010999,2]
[335358329,1724158242971,-500.0,0.00010999,2]
[335358331,1724158242980,-500.0,0.00010999,2]
[335358333,1724158242990,-500.0,0.00010999,2]
[335358335,1724158242999,-266.076234,0.00010999,2]
[335358337,1724158243009,-161.02593643,0.00010999,2]
[335358340,1724158243021,-105.05029757,0.00010999,2]
[335358342,1724158243031,-500.0,0.00010999,2]
[335358344,1724158243041,-151.0,0.00010999,2]
[335358346,1724158243050,-266.076234,0.00010999,2]
[335358348,1724158243059,-500.0,0.00010999,2]
[335358350,1724158243069,-500.0,0.00010999,2]
[335358352,1724158243078,-342.32913847,0.00010999,2]
[335358354,1724158243087,-151.0,0.00010999,2]
[335358356,1724158243097,-151.0,0.00010999,2]
[335358358,1724158243106,-266.076234,0.00010999,2]
[335358360,1724158243115,-266.076234,0.00010999,2]
[335358362,1724158243125,-152.300975,0.00010999,2]
[335358364,1724158243135,-266.076234,0.00010999,2]
[335358366,1724158243144,-151.0,0.00010999,2]
[335358369,1724158243154,-151.0,0.00010999,2]
[335358371,1724158243163,-151.0,0.00010999,2]
[335358373,1724158243172,-151.0,0.00010999,2]
[335358375,1724158243182,-151.0,0.00010999,2]
[335358377,1724158243191,-151.0,0.00010999,2]
[335358379,1724158243200,-3108.45588046,0.00010999,2]
[335358634,1724158245692,-362.47254154,0.00010999,2]
[335358642,1724158245753,-3168.498624,0.00010999,2]
[335358644,1724158245763,-6639.427046,0.00010999,2]
[335358646,1724158245772,-6639.427046,0.00010999,2]
[335358648,1724158245781,-6639.427046,0.00010999,2]
[335358650,1724158245790,-151.0,0.00010999,2]
[335358652,1724158245799,-243.914642,0.00010999,2]
[335358654,1724158245808,-243.914642,0.00010999,2]
[335358656,1724158245818,-243.914642,0.00010999,2]
[335358658,1724158245838,-243.914642,0.00010999,2]
[335358660,1724158245849,-500.0,0.00010999,2]
[335358662,1724158245859,-500.0,0.00010999,2]
[335358664,1724158245869,-500.0,0.00010999,2]
[335358666,1724158245879,-500.0,0.00010999,2]
[335358668,1724158245889,-500.0,0.00010999,2]
[335358670,1724158245899,-500.0,0.00010999,2]
[335358672,1724158245909,-500.0,0.00010999,2]
[335358674,1724158245920,-500.0,0.00010999,2]
[335358676,1724158245930,-500.0,0.00010999,2]
[335358678,1724158245939,-243.914642,0.00010999,2]
[335358680,1724158245949,-500.0,0.00010999,2]
[335358682,1724158245958,-500.0,0.00010999,2]
[335358684,1724158245967,-243.914642,0.00010999,2]
[335358686,1724158245977,-500.0,0.00010999,2]
[335358688,1724158245987,-243.914642,0.00010999,2]
[335358691,1724158245996,-500.0,0.00010999,2]
[335358693,1724158246006,-243.914642,0.00010999,2]
[335358695,1724158246016,-500.0,0.00010999,2]
[335358697,1724158246026,-512.18810512,0.00010999,2]
[335358699,1724158246036,-346.447483,0.00010999,2]
[335358701,1724158246045,-346.447483,0.00010999,2]
[335358703,1724158246056,-346.447483,0.00010999,2]
[335358705,1724158246066,-346.447483,0.00010999,2]
[335358707,1724158246078,-346.447483,0.00010999,2]
[335358709,1724158246088,-346.447483,0.00010999,2]
[335358711,1724158246098,-346.447483,0.00010999,2]
[335358713,1724158246108,-346.447483,0.00010999,2]
[335358715,1724158246118,-151.0,0.00010999,2]
[335358717,1724158246128,-500.0,0.00010999,2]
[335358719,1724158246137,-500.0,0.00010999,2]
[335358721,1724158246146,-304.68293822,0.00010999,2]
[335358723,1724158246155,-151.0,0.00010999,2]
[335358725,1724158246165,-289.786246,0.00010999,2]
[335358727,1724158246177,-1229.79,0.00010999,2]
[335358729,1724158246186,-1229.79,0.00010999,2]
[335358731,1724158246195,-1229.79,0.00010999,2]
[335358733,1724158246204,-1229.79,0.00010999,2]
[335358735,1724158246213,-1229.79,0.00010999,2]
[335358737,1724158246223,-1229.79,0.00010999,2]
[335358739,1724158246232,-436.28586372,0.00010999,2]
[335358741,1724158246248,-35.58217544,0.00010999,2]
[335358743,1724158246258,-1229.79,0.00010999,2]
[335358745,1724158246267,-1229.79,0.00010999,2]
[335358747,1724158246276,-1229.79,0.00010999,2]
[335358750,1724158246287,-151.0,0.00010999,2]
[335358752,1724158246296,-1229.79,0.00010999,2]
[335358754,1724158246305,-152.120553,0.00010999,2]
[335358755,1724158246315,-1229.79,0.00010999,2]
[335358758,1724158246327,-1229.79,0.00010999,2]
[335358760,1724158246337,-1229.79,0.00010999,2]
[335358762,1724158246346,-1229.79,0.00010999,2]
[335358763,1724158246355,-1229.79,0.00010999,2]
[335358766,1724158246365,-1229.79,0.00010999,2]
[335358768,1724158246374,-1229.79,0.00010999,2]
[335358769,1724158246384,-1229.79,0.00010999,2]
[335358771,1724158246393,-1229.79,0.00010999,2]
[335358773,1724158246402,-1229.79,0.00010999,2]
[335358775,1724158246411,-1229.79,0.00010999,2]
[335358777,1724158246421,-1229.79,0.00010999,2]
[335358779,1724158246430,-1229.81,0.00010999,2]
[335358781,1724158246440,-500.0,0.00010999,2]
[335358783,1724158246449,-500.0,0.00010999,2]
[335358786,1724158246461,-500.0,0.00010999,2]
[335358788,1724158246470,-155.84971816,0.00010999,2]
[335358790,1724158246479,-151.0,0.00010999,2]
[335358792,1724158246488,-151.0,0.00010999,2]
[335358794,1724158246496,-151.0,0.00010999,2]
[335358796,1724158246505,-151.0,0.00010999,2]
[335358798,1724158246515,-151.0,0.00010999,2]
[335358800,1724158246524,-151.0,0.00010999,2]
[335358802,1724158246533,-151.0,0.00010999,2]
[335358804,1724158246542,-151.0,0.00010999,2]
[335358806,1724158246551,-152.796726,0.00010999,2]
[335358808,1724158246560,-151.0,0.00010999,2]
[335358810,1724158246569,-151.0,0.00010999,2]
[335358812,1724158246578,-151.0,0.00010999,2]
[335358814,1724158246588,-151.0,0.00010999,2]
[335358816,1724158246598,-151.0,0.00010999,2]
[335358818,1724158246607,-151.0,0.00010999,2]
[335358820,1724158246616,-151.0,0.00010999,2]
[335358822,1724158246626,-151.0,0.00010999,2]
[335358824,1724158246635,-182.630072,0.00010999,2]
[335358826,1724158246644,-151.0,0.00010999,2]
[335358828,1724158246653,-151.0,0.00010999,2]
[335358830,1724158246662,-151.0,0.00010999,2]
[335358832,1724158246671,-151.0,0.00010999,2]
[335358834,1724158246681,-1194.95,0.00010999,2]
[335358836,1724158246690,-1194.95,0.00010999,2]
[335358838,1724158246699,-1194.95,0.00010999,2]
[335358840,1724158246709,-1194.95,0.00010999,2]
[335358842,1724158246719,-1194.95,0.00010999,2]
[335358844,1724158246728,-1194.95,0.00010999,2]
[335358846,1724158246738,-1194.95,0.00010999,2]
[335358848,1724158246748,-1194.95,0.00010999,2]
[335358850,1724158246757,-1194.95,0.00010999,2]
[335358852,1724158246766,-1194.95,0.00010999,2]
[335358854,1724158246776,-1194.95,0.00010999,2]
[335358856,1724158246785,-1194.95,0.00010999,2]
[335358858,1724158246795,-1194.95,0.00010999,2]
[335358859,1724158246804,-1194.95,0.00010999,2]
[335358860,1724158246814,-1194.95,0.00010999,2]
[335358861,1724158246825,-1194.95,0.00010999,2]
[335358862,1724158246834,-1194.95,0.00010999,2]
[335358863,1724158246843,-1194.95,0.00010999,2]
[335358864,1724158246852,-1194.95,0.00010999,2]
[335358865,1724158246861,-1194.95,0.00010999,2]
[335358866,1724158246871,-1194.95,0.00010999,2]
[335358867,1724158246880,-1194.95,0.00010999,2]
[335358868,1724158246889,-1195.02328008,0.00010999,2]
[335358869,1724158246898,-5307.57,0.00010999,2]
[335358871,1724158246908,-5307.57,0.00010999,2]
[335358873,1724158246918,-5307.57,0.00010999,2]
[335358875,1724158246927,-5307.57,0.00010999,2]
[335358877,1724158246936,-5307.57,0.00010999,2]
[335358879,1724158246945,-5307.57,0.00010999,2]
[335358881,1724158246955,-5307.57,0.00010999,2]
[335358883,1724158246964,-5307.57,0.00010999,2]
[335358885,1724158246973,-5307.57,0.00010999,2]
[335358887,1724158246981,-5307.57,0.00010999,2]
[335358889,1724158246991,-5307.57,0.00010999,2]
[335358891,1724158247000,-5307.57,0.00010999,2]
[335358893,1724158247010,-5307.57,0.00010999,2]
[335358895,1724158247019,-5307.57,0.00010999,2]
[335358897,1724158247028,-5307.57,0.00010999,2]
[335358899,1724158247038,-5307.57,0.00010999,2]
[335358901,1724158247047,-5307.57,0.00010999,2]
[335358903,1724158247057,-5307.57,0.00010999,2]
[335358905,1724158247066,-5307.57,0.00010999,2]
[335358907,1724158247077,-5307.57,0.00010999,2]
[335358909,1724158247087,-5307.57,0.00010999,2]
[335358911,1724158247096,-5307.57,0.00010999,2]
[335358913,1724158247105,-151.0,0.00010999,2]
[335358915,1724158247115,-5307.63378043,0.00010999,2]
[335358917,1724158247124,-151.0,0.00010999,2]
[335358919,1724158247135,-151.0,0.00010999,2]
[335358921,1724158247145,-151.0,0.00010999,2]
[335358923,1724158247154,-151.0,0.00010999,2]
[335358925,1724158247163,-151.0,0.00010999,2]
[335358927,1724158247172,-151.0,0.00010999,2]
[335358929,1724158247181,-151.0,0.00010999,2]
[335358931,1724158247190,-151.0,0.00010999,2]
[335358933,1724158247200,-151.0,0.00010999,2]
[335358936,1724158247211,-151.0,0.00010999,2]
[335358938,1724158247222,-189.639943,0.00010999,2]
[335358940,1724158247233,-210.838375,0.00010999,2]
[335358942,1724158247244,-210.838375,0.00010999,2]
[335358944,1724158247256,-210.838375,0.00010999,2]
[335358946,1724158247265,-210.838375,0.00010999,2]
[335358948,1724158247274,-210.838375,0.00010999,2]
[335358950,1724158247283,-210.838375,0.00010999,2]
[335358952,1724158247292,-210.838375,0.00010999,2]
[335358954,1724158247301,-210.838375,0.00010999,2]
[335358956,1724158247310,-298.976342,0.00010999,2]
[335358958,1724158247321,-298.976342,0.00010999,2]
[335358960,1724158247330,-298.976342,0.00010999,2]
[335358962,1724158247341,-298.976342,0.00010999,2]
[335358964,1724158247350,-298.976342,0.00010999,2]
[335358966,1724158247359,-298.976342,0.00010999,2]
[335358968,1724158247368,-298.976342,0.00010999,2]
[335358970,1724158247377,-298.976342,0.00010999,2]
[335358972,1724158247386,-151.0,0.00010999,2]
[335358974,1724158247395,-151.0,0.00010999,2]
[335358976,1724158247404,-151.0,0.00010999,2]
[335358978,1724158247413,-151.0,0.00010999,2]
[335358980,1724158247422,-153.987602,0.00010999,2]
[335358982,1724158247432,-151.0,0.00010999,2]
[335358984,1724158247441,-151.0,0.00010999,2]
[335358986,1724158247451,-151.0,0.00010999,2]
[335358988,1724158247460,-151.0,0.00010999,2]
[335358990,1724158247469,-151.0,0.00010999,2]
[335358992,1724158247478,-151.0,0.00010999,2]